bitfinex/quotes_ETHUSD_20240811
["timestamp","ask_amount","ask_price","bid_price","bid_amount"]
[1723393024741,9.94862,2613.3,2612.9,0.55]
[1723393024954,7.27,2613.3,2612.9,0.55]
[1723393025120,2.67871,2613.2,2612.9,0.55]
[1723393025324,2.67881,2613.1,2612.9,0.55]
[1723393025506,0.05245508,2613.2,2612.9,0.55]
[1723393025713,0.05048232,2613.0,2612.9,0.9707285]
[1723393025915,9.9486,2613.3,2612.9,0.9707285]
[1723393026150,0.05050362,2613.0,2612.9,3.6497385]
[1723393026356,9.94835,2613.6,2613.0,2.67881]
[1723393026648,9.94835,2613.6,2613.1,0.55]
[1723393026822,5.16361,2614.1,2613.4,2.67842]
[1723393026823,2.67794,2614.0,2613.4,2.67842]
[1723393027023,2.67794,2614.0,2613.5,0.55]
[1723393027217,2.67815,2613.8,2613.5,0.55]
[1723393027417,2.67829,2613.6,2613.5,0.55]
[1723393027624,2.67805,2613.9,2613.3,3.22854]
[1723393027844,2.6781,2613.8,2613.4,3.0]
[1723393028026,2.6781,2613.8,2613.5,0.55]
[1723393028222,2.67791,2614.0,2613.5,0.55]
[1723393028654,2.678,2613.9,2613.5,0.55]
[1723393028852,2.67791,2614.0,2613.4,0.55]
[1723393029129,2.67809,2613.8,2613.4,0.55]
[1723393029549,2.67809,2613.8,2613.3,0.55]
[1723393029550,5.35626,2613.8,2613.3,0.55]
[1723393029754,2.6783,2613.6,2613.3,0.55]
[1723393030137,2.67809,2613.8,2613.3,0.55]
[1723393030321,2.67819,2613.7,2613.2,3.0]
[1723393030521,2.67819,2613.7,2613.1,2.4939]
[1723393031664,2.67819,2613.7,2613.1,5.1727]
[1723393031970,5.35647,2613.7,2613.2,3.81727]
[1723393032156,2.67819,2613.7,2613.2,3.81727]
[1723393032329,5.35644,2613.7,2613.3,0.55]
[1723393032726,2.6785,2613.4,2612.7,5.17306]
[1723393033271,2.67873,2613.2,2612.7,5.17306]
[1723393033643,2.67873,2613.2,2612.7,2.4939]
[1723393033973,2.67897,2613.0,2612.4,5.17334]
[1723393034155,5.35797,2613.0,2612.4,5.17334]
[1723393034358,2.67897,2613.0,2612.4,5.17334]
[1723393034756,2.67897,2613.0,2612.4,2.4939]
[1723393034757,2.67902,2612.9,2612.4,2.4939]
[1723393034985,2.67938,2612.6,2612.1,2.4939]
[1723393035129,2.67967,2612.3,2611.7,5.17408]
[1723393035334,2.67953,2612.4,2611.7,5.17408]
[1723393035532,2.67964,2612.3,2611.7,5.691478]
[1723393035839,2.67953,2612.4,2611.7,5.691478]
[1723393036056,2.67953,2612.4,2611.9,2.67997]
[1723393036845,5.35877,2612.6,2611.9,5.35992]
[1723393037030,2.4858,2612.9,2611.7,3.011308]
[1723393037031,2.67918,2612.8,2612.2,2.67968]
[1723393037330,2.67893,2613.0,2612.3,5.80004898]
[1723393037535,2.67893,2613.0,2612.5,2.67935]
[1723393037782,2.67882,2613.1,2612.6,0.55]
[1723393038280,2.67902,2612.9,2612.6,0.55]
[1723393038480,5.4858,2613.3,2612.0,2.4939]
[1723393038641,2.67947,2612.5,2612.0,3.0]
[1723393038850,2.67959,2612.4,2612.0,3.0]
[1723393039044,2.67947,2612.5,2612.0,2.67987]
[1723393039241,2.67913,2612.8,2612.2,2.67967]
[1723393039466,2.4858,2613.2,2612.2,2.67967]
[1723393039467,2.67923,2612.7,2612.2,2.67967]
[1723393039671,2.6794,2612.6,2612.0,2.67987]
[1723393039980,2.67951,2612.5,2611.9,3.0]
[1723393040142,2.67951,2612.5,2611.9,2.68002]
[1723393040347,2.67938,2612.6,2612.0,2.67992]
[1723393040348,0.04841413,2612.4,2612.0,2.67992]
[1723393040668,5.35878,2612.6,2612.0,2.67988]
[1723393040966,2.4858,2612.7,2611.7,5.17408]
[1723393040967,2.72775443,2612.3,2611.7,5.17408]
[1723393041137,2.67978,2612.2,2611.6,2.68029]
[1723393041475,5.40752241,2612.2,2611.6,2.68029]
[1723393041673,2.72773241,2612.2,2611.6,2.68028]
[1723393041974,0.04795241,2612.2,2612.1,2.67983]
[1723393042336,2.67944,2612.5,2612.1,0.55]
[1723393042545,2.67944,2612.5,2612.2,0.55]
[1723393042960,2.67936,2612.6,2612.0,0.55]
[1723393043151,2.67936,2612.6,2612.1,2.67982]
[1723393043372,2.67932,2612.6,2612.2,0.55]
[1723393043571,9.94917,2612.8,2612.2,0.55]
[1723393043950,2.67933,2612.6,2612.2,0.55]
[1723393044892,9.94917,2612.8,2612.2,3.22972]
[1723393045048,9.94913,2612.8,2612.3,3.002524]
[1723393045248,9.94913,2612.8,2612.2,0.55]
[1723393045249,2.67932,2612.7,2612.2,0.55]
[1723393045450,2.67944,2612.5,2612.2,0.55]
[1723393045649,2.67944,2612.5,2612.0,3.55]
[1723393045850,2.67944,2612.5,2612.0,4.4741246]
[1723393046147,2.67954,2612.4,2612.0,4.4741246]
[1723393046350,2.67944,2612.5,2612.0,4.4741246]
[1723393046852,2.67928,2612.7,2612.0,4.4741246]
[1723393046853,2.67922,2612.7,2612.2,2.67965]
[1723393047173,2.67922,2612.7,2612.3,0.55]
[1723393047565,9.94916,2612.8,2612.3,3.22961]
[1723393047894,2.67927,2612.7,2612.3,0.55]
[1723393048482,9.94916,2612.8,2612.3,3.22963]
[1723393048696,5.35834,2612.8,2612.3,0.55]
[1723393048860,6.1778,2613.0,2612.3,0.55]
[1723393049189,6.1778,2613.0,2612.1,0.55]
[1723393049190,2.67947,2612.5,2612.1,0.55]
[1723393049398,2.67953,2612.4,2612.1,0.55]
[1723393050115,2.67944,2612.5,2612.1,0.55]
[1723393050459,2.67953,2612.4,2612.1,0.55]
[1723393050660,2.67964,2612.3,2612.0,0.55]
[1723393050860,2.67973,2612.2,2612.0,0.55]
[1723393051102,2.67973,2612.2,2610.7,3.692]
[1723393051103,2.68009,2611.9,2611.3,2.2508]
[1723393051403,2.67994,2612.0,2611.5,2.68045]
[1723393051568,2.67994,2612.0,2611.4,2.68054]
[1723393051569,10.217813,2612.1,2611.6,2.68034]
[1723393051777,2.67994,2612.0,2611.6,2.68034]
[1723393052013,2.67994,2612.0,2611.4,2.68048]
[1723393052308,2.67994,2612.0,2611.3,2.2508]
[1723393052309,2.6803,2611.7,2611.3,2.2508]
[1723393052468,2.68035,2611.6,2611.1,2.6808]
[1723393053303,2.68035,2611.6,2611.1,3.442099]
[1723393053602,2.68035,2611.6,2611.2,0.55]
[1723393053861,2.68045,2611.5,2611.0,4.93169]
[1723393054174,2.68055,2611.4,2611.0,2.2508]
[1723393054374,2.68055,2611.4,2610.8,5.68109]
[1723393054375,2.68055,2611.4,2610.8,8.3622]
[1723393054572,2.68055,2611.4,2610.8,6.74239]
[1723393054573,2.6807,2611.3,2610.8,6.74239]
[1723393054893,2.68084,2611.2,2610.5,2.68147]
[1723393055093,9.7305,2611.7,2610.4,2.2508]
[1723393055094,2.68112,2610.9,2610.4,2.2508]
[1723393055304,2.68112,2610.9,2610.2,2.68171]
[1723393055305,0.268112,2610.9,2610.2,2.68171]
[1723393055490,2.68132,2610.7,2610.0,4.9327]
[1723393055813,2.68132,2610.7,2610.0,5.42597]
[1723393055991,0.04478063,2610.6,2610.1,2.68187]
[1723393056171,0.04478063,2610.6,2610.2,2.68177]
[1723393056372,0.04478063,2610.6,2610.2,2.68173]
[1723393056704,0.04474157,2610.5,2610.1,2.68183]
[1723393057011,0.04474157,2610.5,2610.0,3.1752]
[1723393057176,0.04474157,2610.5,2610.1,5.68183]
[1723393057381,5.14173,2610.8,2610.1,5.68183]
[1723393057382,5.14173,2610.8,2610.2,2.68173]
[1723393057584,0.04421673,2610.4,2610.1,2.68183]
[1723393057901,5.14173,2610.8,2610.1,2.68183]
[1723393058213,2.68008,2611.9,2610.9,2.2508]
[1723393058511,2.68061,2611.4,2610.9,2.2508]
[1723393058807,2.68061,2611.4,2611.0,0.55]
[1723393059213,0.514058,2611.8,2611.0,3.23089]
[1723393059214,2.68029,2611.7,2611.0,3.23089]
[1723393059373,2.68047,2611.5,2611.0,3.23089]
[1723393059779,2.68047,2611.5,2611.0,0.55]
[1723393059780,2.68055,2611.4,2611.0,0.55]
[1723393060012,2.68047,2611.5,2611.0,0.55]
[1723393060213,5.361,2611.5,2611.0,0.55]
[1723393060380,2.6806,2611.4,2611.0,0.55]
[1723393060919,2.68065,2611.4,2611.0,0.55]
[1723393061082,2.68065,2611.4,2610.9,3.23104]
[1723393061423,2.68058,2611.4,2610.9,3.23104]
[1723393061791,6.37205,2611.9,2611.0,2.68091]
[1723393061792,5.36075,2611.6,2611.0,2.68091]
[1723393062030,2.68056,2611.4,2611.1,0.55]
[1723393062323,2.68035,2611.6,2611.1,0.55]
[1723393062513,2.68053,2611.5,2611.0,2.68094]
[1723393062709,2.68053,2611.5,2611.1,0.55]
[1723393062911,2.68056,2611.4,2611.1,0.55]
[1723393063111,2.68056,2611.4,2610.9,3.23105]
[1723393064521,2.68056,2611.4,2610.9,0.55]
[1723393064724,2.68046,2611.5,2610.9,0.55]
[1723393064935,7.27,2611.7,2611.3,2.6806]
[1723393065158,7.27,2611.7,2611.0,2.2508]
[1723393065159,2.68036,2611.6,2611.4,0.55]
[1723393065610,2.68036,2611.6,2611.2,0.55]
[1723393066016,7.27,2611.7,2611.3,2.68063]
[1723393066200,5.1405,2612.0,2611.3,2.68063]
[1723393066201,7.27,2612.0,2611.7,2.68018]
[1723393066401,19.87,2612.4,2611.6,0.07657133]
[1723393066402,22.54959,2612.4,2611.6,0.07657133]
[1723393066600,22.54959,2612.4,2611.9,2.67999]
[1723393066927,2.67963,2612.3,2612.0,0.55]
[1723393067103,2.67963,2612.3,2611.8,2.68011]
[1723393067305,2.67963,2612.3,2611.9,0.55]
[1723393067528,7.27,2612.5,2611.9,0.55]
[1723393067727,2.67894,2613.0,2612.2,2.67965]
[1723393067728,2.67917,2612.8,2612.2,2.67965]
[1723393067929,2.67917,2612.8,2612.3,3.22957]
[1723393068630,7.27,2612.9,2612.4,2.67951]
[1723393068989,7.27,2612.9,2612.6,2.67932]
[1723393069145,7.27,2612.9,2612.7,0.55]
[1723393069345,7.27,2612.9,2612.5,0.55]
[1723393069575,9.94901,2612.9,2612.5,0.55]
[1723393069777,9.94901,2612.9,2612.3,3.22956]
[1723393070372,0.03885497,2612.8,2612.3,3.22956]
[1723393070542,0.03885497,2612.8,2612.3,3.30611]
[1723393070740,2.4662,2612.7,2612.3,3.30611]
[1723393070943,2.67923,2612.7,2612.3,0.55]
[1723393071275,2.67923,2612.7,2612.2,2.67968]
[1723393071276,2.71789552,2612.7,2612.2,2.67968]
[1723393071475,2.71789552,2612.7,2612.3,0.55]
[1723393072267,0.03866552,2612.7,2612.3,3.30616731]
[1723393072458,7.27,2612.9,2612.5,2.67935]
[1723393072678,0.03879358,2612.8,2612.6,3.22931]
[1723393072990,0.03879358,2612.8,2612.6,0.55]
[1723393073293,2.67855,2613.4,2612.9,2.67897]
[1723393073494,7.27,2613.5,2613.0,0.55]
[1723393073796,2.67881,2613.1,2613.0,0.55]
[1723393074157,2.71531027,2613.1,2613.0,0.55]
[1723393074764,0.03650027,2613.1,2613.0,0.55]
[1723393075300,0.03650027,2613.1,2612.8,0.55]
[1723393075461,0.03650027,2613.1,2612.9,2.679]
[1723393075661,2.67852,2613.4,2613.0,0.55]
[1723393075860,7.27,2613.5,2613.0,3.2289]
[1723393075861,0.03966628,2613.3,2613.0,3.2289]
[1723393076160,7.27,2613.5,2613.0,3.2289]
[1723393076161,7.27,2613.5,2613.0,0.55]
[1723393076357,7.27,2613.5,2612.4,4.98084]
[1723393076358,2.67894,2613.0,2612.4,4.98084]
[1723393076601,2.67894,2613.0,2612.5,3.22942]
[1723393076894,0.03919731,2612.9,2612.6,2.67926]
[1723393077196,0.03919731,2612.9,2612.8,2.67911]
[1723393077495,0.03916286,2612.9,2612.8,3.22911]
[1723393078005,2.67856,2613.4,2612.8,3.22911]
[1723393078182,0.03639667,2612.9,2612.8,3.22911]
[1723393078492,2.67856,2613.4,2612.9,2.67901]
[1723393078789,2.67856,2613.4,2613.0,0.55]
[1723393079496,2.6786,2613.3,2613.0,0.55]
[1723393079655,2.6786,2613.3,2612.8,2.67908]
[1723393079656,2.67856,2613.4,2612.9,3.22898]
[1723393080269,5.35714,2613.4,2612.9,3.82744642]
[1723393080474,2.67893,2613.0,2612.4,2.3014]
[1723393080673,5.35753,2613.2,2612.6,2.67922]
[1723393080905,0.535753,2613.1,2612.6,2.67922]
[1723393081191,2.67876,2613.2,2612.6,2.67922]
[1723393081765,2.67876,2613.2,2612.7,0.55]
[1723393081967,2.67891,2613.0,2612.7,0.55]
[1723393082274,5.35788,2613.0,2612.7,0.55]
[1723393082476,2.67902,2612.9,2612.6,0.55]
[1723393082694,2.67902,2612.9,2612.5,0.55]
[1723393082858,2.67912,2612.8,2612.5,0.55]
[1723393083499,2.67912,2612.8,2612.4,3.55]
[1723393083807,5.35833,2612.8,2612.4,3.0]
[1723393083991,2.67898,2613.0,2612.5,2.67936]
[1723393084188,2.67902,2612.9,2612.4,2.67952]
[1723393084415,2.67855,2613.4,2612.8,2.67905]
[1723393084700,2.946405,2613.4,2612.8,2.67905]
[1723393084915,2.946405,2613.4,2612.5,2.3014]
[1723393084916,2.67886,2613.1,2612.5,2.3014]
[1723393085214,2.734055,2613.4,2612.7,2.6792]
[1723393085215,2.6787,2613.2,2612.7,2.6792]
[1723393085406,2.6787,2613.2,2612.8,3.2291]
[1723393085567,2.734055,2613.4,2612.9,2.67892]
[1723393085568,2.67851,2613.4,2612.9,2.67892]
[1723393085767,2.67851,2613.4,2612.8,3.40147711]
[1723393085768,2.67836,2613.6,2613.1,2.67871]
[1723393085968,2.67836,2613.6,2613.1,5.10801]
[1723393086170,0.03876161,2613.5,2613.2,0.55]
[1723393086394,0.03876161,2613.5,2613.2,1.39133871]
[1723393086609,0.03876161,2613.5,2613.4,2.6785]
[1723393086774,2.67835,2613.6,2613.4,0.55]
[1723393086973,2.71459887,2613.5,2613.2,0.55]
[1723393087409,0.03619887,2613.5,2613.2,0.55]
[1723393087607,0.03619887,2613.5,2613.2,0.87288]
[1723393088013,2.67822,2613.7,2613.2,0.87288]
[1723393088322,2.67811,2613.8,2613.2,3.55152]
[1723393088475,5.16,2614.1,2613.2,3.55152]
[1723393088476,0.03888086,2613.6,2613.4,2.67843]
[1723393088812,2.67781,2614.1,2613.6,2.67827]
[1723393089113,2.67781,2614.1,2613.7,0.55]
[1723393089409,2.67795,2614.0,2613.7,0.55]
[1723393089611,3.213518,2614.0,2613.6,0.55]
[1723393090110,2.67773,2614.2,2613.6,3.22823]
[1723393090485,7.83755,2614.4,2613.6,3.22823]
[1723393091019,2.67777,2614.2,2613.6,0.55]
[1723393091218,2.6779,2614.0,2613.6,0.55]
[1723393091448,2.67802,2613.9,2613.6,0.55]
[1723393091714,2.67802,2613.9,2613.5,0.55]
[1723393092991,2.6779,2614.0,2613.5,0.55]
[1723393093588,2.67802,2613.9,2613.5,0.55]
[1723393093982,2.6779,2614.0,2613.5,0.55]
[1723393094188,2.67773,2614.2,2613.6,2.67824]
[1723393094388,5.35549,2614.2,2613.7,0.55]
[1723393094595,2.67773,2614.2,2613.7,0.55]
[1723393094783,5.35548,2614.2,2613.7,0.55]
[1723393095113,7.27,2614.3,2613.8,2.67801]
[1723393095330,7.27,2614.3,2613.9,0.55]
[1723393095505,2.67753,2614.4,2613.9,3.22792]
[1723393096241,2.67754,2614.4,2613.9,0.55]
[1723393096447,39.42,2614.6,2613.9,0.55]
[1723393096730,2.67788,2614.0,2613.5,2.67832]
[1723393096915,5.35549,2614.2,2613.6,3.22823]
[1723393097128,2.67754,2614.4,2613.7,2.75469715]
[1723393097430,5.35506,2614.4,2613.9,2.67798]
[1723393097631,2.67753,2614.4,2613.9,2.67798]
[1723393097843,2.67737,2614.5,2614.0,3.22788]
[1723393097998,2.67737,2614.5,2614.0,0.55]
[1723393098390,42.09735,2614.6,2614.0,0.55]
[1723393098708,43.61171021,2617.3,2614.3,2.67752]
[1723393098709,11.9004,2614.9,2614.3,2.67752]
[1723393098891,7.30744,2614.9,2614.4,0.55]
[1723393099188,7.30744,2614.9,2614.4,3.2274]
[1723393099392,7.30744,2614.9,2614.4,5.6567]
[1723393099589,7.30744,2614.9,2614.5,2.67729]
[1723393099590,4.6304,2614.9,2614.5,2.67729]
[1723393099804,4.6304,2614.9,2614.7,2.67709]
[1723393100041,4.6304,2614.9,2614.8,0.55]
[1723393100192,4.6304,2614.9,2614.8,3.22706]
[1723393100394,4.6648703,2614.9,2614.8,3.22706]
[1723393100631,4.6648703,2614.9,2614.8,5.90412]
[1723393100895,4.6648703,2614.9,2614.8,6.25442048]
[1723393101100,4.6648703,2614.9,2614.8,1.14806048]
[1723393101326,4.6648703,2614.9,2614.8,0.55]
[1723393101829,4.6648703,2614.9,2614.8,2.67706]
[1723393101990,4.6648703,2614.9,2614.8,3.22706]
[1723393102194,4.6648703,2614.9,2614.8,0.55]
[1723393102618,4.6648703,2614.9,2614.7,2.67712]
[1723393102849,4.6648703,2614.9,2614.8,0.55]
[1723393103055,4.6648703,2614.9,2614.6,6.22725]
[1723393103258,4.6648703,2614.9,2614.8,2.67706]
[1723393103466,4.6648703,2614.9,2614.8,4.117491]
[1723393104367,4.6648703,2614.9,2614.8,1.440431]
[1723393104670,4.6648703,2614.9,2614.5,5.10658]
[1723393104969,4.6648703,2614.9,2614.6,2.67722]
[1723393105556,4.6648703,2614.9,2614.8,5.35412]
[1723393105948,4.6648703,2614.9,2614.8,5.90412]
[1723393106148,4.6648703,2614.9,2614.8,6.50218048]
[1723393106349,4.6648703,2614.9,2614.8,6.5786618]
[1723393106770,4.6648703,2614.9,2614.8,6.50218048]
[1723393106931,4.6648703,2614.9,2614.8,3.82512048]
[1723393107132,4.6648703,2614.9,2614.8,1.14806048]
[1723393107334,4.6648703,2614.9,2614.8,0.55]
[1723393107663,4.6648703,2614.9,2614.7,3.22715]
[1723393107867,4.6648703,2614.9,2614.8,2.67706]
[1723393108167,4.6648703,2614.9,2614.8,3.22706]
[1723393108534,4.6648703,2614.9,2614.5,2.4293]
[1723393108740,4.6648703,2614.9,2614.3,0.267752]
[1723393108943,4.6648703,2614.9,2614.5,2.6773]
[1723393109269,4.6648703,2614.9,2614.3,5.622752]
[1723393109442,4.6648703,2614.9,2614.4,0.7988852]
[1723393109648,7.3418503,2614.9,2614.4,0.7988852]
[1723393109855,2.67715,2614.8,2614.4,0.7988852]
[1723393110062,2.67715,2614.8,2614.5,0.55]
[1723393110264,0.0348898,2614.7,2614.5,0.55]
[1723393110468,2.67715,2614.8,2614.5,0.55]
[1723393110777,2.7120698,2614.7,2614.5,0.55]
[1723393110972,0.0348898,2614.7,2614.5,0.55]
[1723393111145,2.7120798,2614.7,2614.4,0.55]
[1723393111346,7.30738,2614.9,2614.3,3.731932]
[1723393111546,0.03487222,2614.6,2614.4,2.67747]
[1723393111852,4.6304,2614.9,2614.5,3.22731]
[1723393112075,4.6304,2614.9,2614.6,0.55]
[1723393112280,4.6304,2614.9,2614.6,3.22727]
[1723393113381,4.6304,2614.9,2614.7,2.67713]
[1723393113548,4.6304,2614.9,2614.8,0.55]
[1723393113744,4.6304,2614.9,2614.8,5.90412]
[1723393114787,4.6304,2614.9,2614.8,5.98060053]
[1723393115090,4.6304,2614.9,2614.8,11.02376053]
[1723393115302,4.6304,2614.9,2614.8,13.94728]
[1723393115491,4.6304,2614.9,2614.8,18.05210419]
[1723393116159,2.67555,2616.3,2615.7,2.67608]
[1723393116392,2.67563,2616.2,2615.8,0.55]
[1723393117401,2.67589,2616.0,2615.8,0.55]
[1723393117873,2.67589,2616.0,2615.6,0.55]
[1723393118069,9.94548,2616.4,2615.7,2.67604]
[1723393118276,9.94548,2616.4,2615.8,0.55]
[1723393118594,12.62099,2616.4,2615.8,3.22601]
[1723393118902,2.67563,2616.2,2615.8,0.55]
[1723393119061,2.67563,2616.2,2615.7,3.22609]
[1723393119262,9.94549,2616.4,2615.8,2.67602]
[1723393119263,9.94548,2616.4,2615.8,2.67602]
[1723393119464,7.27,2616.4,2616.0,2.67577]
[1723393119693,9.5972,2616.8,2615.9,2.9161]
[1723393120008,2.3272,2616.7,2616.0,0.29925528]
[1723393120317,2.67529,2616.6,2616.1,0.55]
[1723393120457,2.67529,2616.6,2615.9,0.55]
[1723393120458,2.67529,2616.6,2615.9,3.22587]
[1723393120658,2.67549,2616.4,2615.9,3.22587]
[1723393120960,2.67549,2616.4,2615.9,1.140195]
[1723393121190,2.3272,2616.7,2615.9,1.140195]
[1723393121191,2.67535,2616.5,2615.9,1.140195]
[1723393121553,2.67529,2616.6,2616.1,2.67565]
[1723393121666,2.67529,2616.6,2616.2,0.55]
[1723393121856,2.70876203,2616.6,2616.2,0.55]
[1723393122193,0.03347203,2616.6,2616.2,0.55]
[1723393122396,7.27,2616.8,2616.3,3.07443056]
[1723393122604,5.34978,2617.0,2616.5,2.67532]
[1723393122809,9.5972,2617.3,2616.6,0.55]
[1723393122961,2.67508,2616.8,2616.4,0.55]
[1723393123165,2.67508,2616.8,2616.3,0.55]
[1723393123781,2.67508,2616.8,2616.4,0.322561]
[1723393123990,2.67508,2616.8,2616.5,0.55]
[1723393124363,5.34979,2617.0,2616.4,0.55]
[1723393124564,5.34979,2617.0,2616.4,3.22538]
[1723393124765,2.67492,2616.9,2616.4,3.89953718]
[1723393124960,2.67514,2616.7,2616.4,1.14772619]
[1723393125205,2.67514,2616.7,2616.4,0.55]
[1723393125503,2.67514,2616.7,2616.2,0.55]
[1723393125701,2.67514,2616.7,2616.1,6.22568]
[1723393125858,2.67503,2616.8,2616.1,1.354198]
[1723393126062,2.67499,2616.9,2616.3,5.35095]
[1723393126299,2.67499,2616.9,2616.4,0.55]
[1723393126610,2.67482,2617.0,2616.4,0.55]
[1723393126774,2.4047,2617.0,2616.4,0.55]
[1723393126977,9.94455,2617.3,2615.6,2.4275]
[1723393126978,2.4047,2616.7,2615.6,2.4275]
[1723393127177,2.4047,2616.1,2615.2,5.10406]
[1723393127571,5.35246,2615.7,2615.2,5.10406]
[1723393127766,2.67623,2615.7,2615.2,5.10406]
[1723393127987,2.67601,2615.9,2615.3,2.67653]
[1723393128227,2.67579,2616.1,2615.6,2.67621]
[1723393128424,2.67579,2616.1,2615.2,2.4275]
[1723393128425,9.94559,2616.3,2615.7,2.4275]
[1723393128631,2.67574,2616.1,2615.5,5.35253]
[1723393128916,2.67574,2616.1,2615.6,2.67622]
[1723393129157,9.94559,2616.3,2615.8,2.67603]
[1723393129326,2.67559,2616.3,2615.9,0.55]
[1723393129486,2.70910076,2616.3,2615.9,0.55]
[1723393129825,0.03351076,2616.3,2615.9,3.816087]
[1723393130119,0.03351076,2616.3,2616.1,2.67567]
[1723393130326,7.27,2616.6,2616.2,0.55]
[1723393130493,7.27,2616.6,2616.0,0.3567707]
[1723393130698,7.27,2616.6,2616.2,2.67562]
[1723393130895,0.03344726,2616.5,2616.2,2.67562]
[1723393131126,0.03344726,2616.5,2616.3,0.55]
[1723393131433,7.27,2616.6,2616.3,3.22551]
[1723393131725,2.67512,2616.7,2616.3,0.55]
[1723393131929,2.70872612,2616.6,2616.3,0.55]
[1723393132421,2.70872612,2616.6,2616.2,0.55]
[1723393132422,0.03344612,2616.6,2616.2,0.55]
[1723393132622,3.916433,2617.0,2616.3,0.07643853]
[1723393132623,2.67495,2616.9,2616.3,0.07643853]
[1723393132948,2.67507,2616.8,2616.4,0.55]
[1723393133240,2.7087736,2616.8,2616.4,0.55]
[1723393133840,0.0337036,2616.8,2616.4,0.55]
[1723393134229,2.67519,2616.7,2616.4,0.55]
[1723393134432,0.0337036,2616.8,2615.9,2.4275]
[1723393134623,2.6757,2616.2,2615.6,5.67615]
[1723393134934,7.27,2616.5,2615.6,3.07645456]
[1723393135101,7.27,2616.5,2616.1,2.67567]
[1723393135297,7.27,2616.5,2616.0,2.4275]
[1723393135496,2.67549,2616.4,2615.7,3.30427576]
[1723393135898,2.67563,2616.2,2615.8,0.55]
[1723393136114,2.6755,2616.4,2615.6,2.4275]
[1723393136115,2.67589,2616.0,2615.6,2.4275]
[1723393136436,2.4047,2616.3,2615.6,5.10374]
[1723393136674,2.6758,2616.1,2615.6,2.4275]
[1723393137234,2.67585,2616.0,2615.6,2.4275]
[1723393137539,2.67585,2616.0,2615.7,0.55]
[1723393137926,5.35143,2616.2,2615.7,0.55]
[1723393138123,2.67546,2616.4,2615.7,0.55]
[1723393138300,2.67546,2616.4,2615.8,0.3487875]
[1723393138502,2.67559,2616.3,2615.9,0.55]
[1723393138746,2.67546,2616.4,2615.9,0.55]
[1723393138747,2.67545,2616.4,2615.9,0.55]
[1723393138953,2.67584,2616.0,2615.7,0.55]
[1723393139233,2.67599,2615.9,2615.7,0.55]
[1723393139441,2.67604,2615.8,2615.7,0.55]
[1723393139738,2.67584,2616.0,2615.7,0.55]
[1723393139934,22.55,2616.7,2615.9,2.67594]
[1723393140149,2.67539,2616.5,2616.0,1.060344]
[1723393140465,2.67539,2616.5,2616.0,0.55]
[1723393140663,2.67527,2616.6,2616.0,3.22579]
[1723393140873,2.67527,2616.6,2616.0,0.55]
[1723393140874,2.67529,2616.6,2616.0,0.55]
[1723393141333,5.35061,2616.6,2616.0,3.22582]
[1723393141531,2.67529,2616.6,2616.0,3.22582]
[1723393141736,22.54508,2616.8,2616.1,0.07644344]
[1723393142072,2.67508,2616.8,2616.2,0.55]
[1723393142229,2.67508,2616.8,2616.2,0.96350534]
[1723393142430,2.67522,2616.6,2616.2,0.96350534]
[1723393142667,5.35052,2616.6,2616.2,0.96350534]
[1723393142971,2.67522,2616.6,2616.2,0.96350534]
[1723393144370,2.67512,2616.7,2616.2,3.63911534]
[1723393144871,2.67512,2616.7,2616.2,0.96350534]
[1723393144872,2.67522,2616.6,2616.2,0.96350534]
[1723393145037,2.67522,2616.6,2616.2,0.55]
[1723393145685,2.4047,2616.8,2615.3,2.67648]
[1723393145971,2.67589,2616.0,2615.5,5.0527]
[1723393146277,2.6763,2615.6,2615.1,5.05309]
[1723393146444,2.6763,2615.6,2615.1,0.772998]
[1723393146648,2.67646,2615.4,2614.9,2.67688]
[1723393147045,2.67662,2615.3,2614.8,2.3764]
[1723393147372,2.67662,2615.3,2614.7,2.67712]
[1723393147373,2.67667,2615.2,2614.7,2.67712]
[1723393147683,2.4442,2615.8,2614.7,0.773072]
[1723393147684,2.67689,2615.0,2614.7,0.773072]
[1723393147836,5.35345,2615.2,2614.6,2.67721]
[1723393148048,5.35345,2615.2,2614.7,0.505361]
[1723393148049,5.35343,2615.2,2614.7,0.505361]
[1723393148308,2.67687,2615.0,2614.2,2.67766]
[1723393148452,2.67687,2615.0,2614.3,2.67751]
[1723393148453,2.67706,2614.8,2614.3,2.67751]
[1723393148651,2.67687,2615.0,2614.4,5.890407]
[1723393148953,5.3538,2615.0,2614.4,3.212937]
[1723393149211,2.67697,2614.9,2614.4,2.67742]
[1723393149365,2.67697,2614.9,2614.3,2.67752]
[1723393150160,2.67697,2614.9,2614.4,2.67747]
[1723393150350,2.67697,2614.9,2614.5,0.267747]
[1723393150552,2.67697,2614.9,2614.6,0.55]
[1723393150764,2.67687,2615.0,2614.6,0.55]
[1723393151173,2.67717,2614.7,2614.6,0.55]
[1723393151554,2.67734,2614.6,2614.2,3.0]
[1723393151806,2.67734,2614.6,2614.2,0.805421]
[1723393152013,2.67734,2614.6,2614.2,3.805421]
[1723393152376,2.67707,2614.8,2614.3,2.67757]
[1723393152704,2.67707,2614.8,2614.2,0.805421]
[1723393152705,2.67727,2614.6,2614.2,0.805421]
[1723393153014,2.67727,2614.6,2614.3,0.55]